[Event "Early-Titled-Tuesday-Blitz-March-26-2024"]
[Site "Chess.com"]
[Date "2024.03.26"]
[Round "11"]
[White "biveklama"]
[Black "cthulhuuu"]
[Result "1-0"]
[WhiteElo "2581"]
[BlackElo "2425"]
[TimeControl "180+1"]
[EndTime "10:03:28 PDT"]
[Termination "biveklama won on time"]

1. e4 {[%clk 0:03:00.9]} 1... d6 {[%clk 0:02:59.8]} 2. d4 {[%clk 0:02:59.7]}
2... Nf6 {[%clk 0:03:00.5]} 3. Nc3 {[%clk 0:02:59.7]} 3... c6 {[%clk 0:03:01.1]}
4. f4 {[%clk 0:02:55.6]} 4... Qb6 {[%clk 0:03:00.8]} 5. Nf3 {[%clk 0:02:54.6]}
5... Bg4 {[%clk 0:03:00.5]} 6. h3 {[%clk 0:02:52.7]} 6... Bxf3 {[%clk
0:02:59.9]} 7. Qxf3 {[%clk 0:02:53.6]} 7... e6 {[%clk 0:02:48.9]} 8. Qf2 {[%clk
0:02:42]} 8... d5 {[%clk 0:02:48.8]} 9. e5 {[%clk 0:02:40.8]} 9... Nfd7 {[%clk
0:02:48.2]} 10. a3 {[%clk 0:02:39]} 10... c5 {[%clk 0:02:46.6]} 11. Ne2 {[%clk
0:02:19]} 11... Nc6 {[%clk 0:02:43.8]} 12. c3 {[%clk 0:02:10.7]} 12... g6 {[%clk
0:02:38.8]} 13. b4 {[%clk 0:02:01.3]} 13... cxd4 {[%clk 0:02:36.6]} 14. Nxd4
{[%clk 0:01:55.9]} 14... Nxd4 {[%clk 0:02:33.7]} 15. Qxd4 {[%clk 0:01:53.9]}
15... Rc8 {[%clk 0:02:33.6]} 16. Be3 {[%clk 0:01:48.4]} 16... Qc7 {[%clk
0:02:23.7]} 17. Rc1 {[%clk 0:01:47.4]} 17... Nb6 {[%clk 0:02:23.8]} 18. Bb5+
{[%clk 0:01:45.6]} 18... Kd8 {[%clk 0:02:15.8]} 19. c4 {[%clk 0:01:34]} 19...
Ke7 {[%clk 0:01:15.1]} 20. cxd5 {[%clk 0:01:27.9]} 20... Qxc1+ {[%clk
0:01:11.1]} 21. Bxc1 {[%clk 0:01:28.5]} 21... Rxc1+ {[%clk 0:01:11.1]} 22. Kd2
{[%clk 0:01:28.7]} 22... Rxh1 {[%clk 0:01:08.7]} 23. d6+ {[%clk 0:01:21.4]}
23... Kd8 {[%clk 0:01:06.9]} 24. Qc5 {[%clk 0:01:21.2]} 24... Bxd6 {[%clk
0:00:08.7]} 25. exd6 {[%clk 0:01:21]} 25... Nd5 {[%clk 0:00:05.1]} 26. Qxa7
{[%clk 0:01:20.4]} 1-0

[Event "Early-Titled-Tuesday-Blitz-March-26-2024"]
[Site "Chess.com"]
[Date "2024.03.26"]
[Round "11"]
[White "nabukatnezarr"]
[Black "gummigisla"]
[Result "1-0"]
[WhiteElo "2599"]
[BlackElo "2433"]
[TimeControl "180+1"]
[EndTime "10:03:30 PDT"]
[Termination "nabukatnezarr won by resignation"]

1. b3 {[%clk 0:03:00.3]} 1... d5 {[%clk 0:02:56]} 2. Bb2 {[%clk 0:03:00]} 2...
d4 {[%clk 0:02:56.2]} 3. e3 {[%clk 0:02:58.2]} 3... c5 {[%clk 0:02:55.9]} 4. Nf3
{[%clk 0:02:55.8]} 4... Nc6 {[%clk 0:02:47.6]} 5. Bb5 {[%clk 0:02:55.3]} 5...
dxe3 {[%clk 0:02:47]} 6. dxe3 {[%clk 0:02:34.8]} 6... Bd7 {[%clk 0:02:42.5]} 7.
O-O {[%clk 0:02:33.8]} 7... f6 {[%clk 0:02:31.4]} 8. Qe2 {[%clk 0:02:32.8]} 8...
e6 {[%clk 0:02:28.7]} 9. Rd1 {[%clk 0:02:33]} 9... Qc7 {[%clk 0:02:28.3]} 10.
Nh4 {[%clk 0:02:30.5]} 10... g6 {[%clk 0:02:22]} 11. Na3 {[%clk 0:02:26.9]}
11... a6 {[%clk 0:02:13.6]} 12. Bxc6 {[%clk 0:02:17.9]} 12... Bxc6 {[%clk
0:02:12.1]} 13. e4 {[%clk 0:02:18.7]} 13... b5 {[%clk 0:02:02.1]} 14. Rd2 {[%clk
0:02:07.1]} 14... e5 {[%clk 0:01:49.3]} 15. Rad1 {[%clk 0:02:02.4]} 15... Nh6
{[%clk 0:01:43.1]} 16. c4 {[%clk 0:02:01.5]} 16... b4 {[%clk 0:01:42]} 17. Nc2
{[%clk 0:02:01.4]} 17... Be7 {[%clk 0:01:39.6]} 18. Ne3 {[%clk 0:02:01.1]} 18...
O-O {[%clk 0:01:32.7]} 19. Nd5 {[%clk 0:02:00.8]} 19... Bxd5 {[%clk 0:01:32]}
20. Rxd5 {[%clk 0:02:01.7]} 20... Rad8 {[%clk 0:01:23.9]} 21. g3 {[%clk
0:02:00.2]} 21... Rxd5 {[%clk 0:01:20.5]} 22. Rxd5 {[%clk 0:02:01.1]} 22... Rd8
{[%clk 0:01:20.3]} 23. Qd2 {[%clk 0:01:57.9]} 23... Nf7 {[%clk 0:01:19.4]} 24.
Ng2 {[%clk 0:01:54.4]} 24... Nd6 {[%clk 0:01:03.7]} 25. f3 {[%clk 0:01:52]}
25... Nc8 {[%clk 0:00:58.4]} 26. Ne3 {[%clk 0:01:51]} 26... Nb6 {[%clk
0:00:58.2]} 27. Rxd8+ {[%clk 0:01:42.1]} 27... Qxd8 {[%clk 0:00:57.9]} 28. Nd5
{[%clk 0:01:43]} 28... Nxd5 {[%clk 0:00:56.8]} 29. Qxd5+ {[%clk 0:01:43.9]}
29... Qxd5 {[%clk 0:00:56]} 30. cxd5 {[%clk 0:01:44.8]} 30... Kf8 {[%clk
0:00:51.2]} 31. Kf1 {[%clk 0:01:44.9]} 31... Ke8 {[%clk 0:00:51]} 32. Ke2 {[%clk
0:01:45.6]} 32... Kd7 {[%clk 0:00:51.2]} 33. Kd3 {[%clk 0:01:46.4]} 33... Kc7
{[%clk 0:00:49.5]} 34. Kc4 {[%clk 0:01:46.4]} 34... Kb6 {[%clk 0:00:49.6]} 35.
f4 {[%clk 0:01:38.4]} 35... Bd6 {[%clk 0:00:45.3]} 36. fxe5 {[%clk 0:01:37.4]}
36... fxe5 {[%clk 0:00:42.6]} 37. Bc1 {[%clk 0:01:33]} 37... Kc7 {[%clk
0:00:41.1]} 38. Bg5 {[%clk 0:01:30.3]} 38... Kb6 {[%clk 0:00:36.3]} 39. Bd8+
{[%clk 0:01:28.1]} 39... Kb7 {[%clk 0:00:36.3]} 40. h3 {[%clk 0:01:24.2]} 40...
Kc8 {[%clk 0:00:35.1]} 41. Bb6 {[%clk 0:01:23.5]} 1-0

[Event "Early-Titled-Tuesday-Blitz-March-26-2024"]
[Site "Chess.com"]
[Date "2024.03.26"]
[Round "11"]
[White "Chess_Gainz"]
[Black "KorolDimitriy75"]
[Result "1-0"]
[WhiteElo "2532"]
[BlackElo "2376"]
[TimeControl "180+1"]
[EndTime "10:03:33 PDT"]
[Termination "Chess_Gainz won on time"]

1. e4 {[%clk 0:03:00.9]} 1... c5 {[%clk 0:03:00.1]} 2. Nf3 {[%clk 0:03:00.9]}
2... d6 {[%clk 0:03:00.5]} 3. d4 {[%clk 0:03:01.5]} 3... cxd4 {[%clk 0:03:01.4]}
4. Nxd4 {[%clk 0:03:02.1]} 4... Nf6 {[%clk 0:03:02]} 5. Nc3 {[%clk 0:03:02.6]}
5... g6 {[%clk 0:03:02.9]} 6. Be3 {[%clk 0:03:01.9]} 6... Bg7 {[%clk 0:03:03.3]}
7. f3 {[%clk 0:03:02.3]} 7... O-O {[%clk 0:03:03.9]} 8. Qd2 {[%clk 0:03:02.8]}
8... Nc6 {[%clk 0:03:04.6]} 9. g4 {[%clk 0:03:03.5]} 9... Be6 {[%clk 0:03:04.3]}
10. Nxe6 {[%clk 0:03:03.5]} 10... fxe6 {[%clk 0:03:04.6]} 11. O-O-O {[%clk
0:03:04.1]} 11... Ne5 {[%clk 0:03:03.6]} 12. Be2 {[%clk 0:03:04.5]} 12... Qc8
{[%clk 0:03:03.9]} 13. h4 {[%clk 0:03:04.4]} 13... Nc4 {[%clk 0:03:04]} 14. Bxc4
{[%clk 0:03:04.4]} 14... Qxc4 {[%clk 0:03:04.9]} 15. Bd4 {[%clk 0:03:05]} 15...
e5 {[%clk 0:02:08.7]} 16. Be3 {[%clk 0:03:04.5]} 16... b5 {[%clk 0:01:59.9]} 17.
Kb1 {[%clk 0:03:04.7]} 17... b4 {[%clk 0:01:48.3]} 18. Ne2 {[%clk 0:03:05]}
18... a5 {[%clk 0:01:45.5]} 19. h5 {[%clk 0:03:00.7]} 19... a4 {[%clk
0:01:20.9]} 20. hxg6 {[%clk 0:02:57.2]} 20... hxg6 {[%clk 0:01:21.8]} 21. Bh6
{[%clk 0:02:57.8]} 21... b3 {[%clk 0:00:51.6]} 22. cxb3 {[%clk 0:02:57.9]} 22...
axb3 {[%clk 0:00:51.7]} 23. a3 {[%clk 0:02:58.6]} 23... Bxh6 {[%clk 0:00:26]}
24. Rxh6 {[%clk 0:02:59.5]} 24... Kg7 {[%clk 0:00:20.1]} 25. Nc3 {[%clk
0:02:33.7]} 25... Rh8 {[%clk 0:00:15.4]} 26. Rdh1 {[%clk 0:02:32.1]} 26... Rxh6
{[%clk 0:00:13.8]} 27. Qxh6+ {[%clk 0:02:30]} 27... Kf7 {[%clk 0:00:14]} 28. Qe3
{[%clk 0:02:27.5]} 28... Ke6 {[%clk 0:00:12.3]} 29. Rc1 {[%clk 0:02:22.4]} 29...
Qa6 {[%clk 0:00:08.8]} 30. g5 {[%clk 0:02:19.8]} 30... Nh5 {[%clk 0:00:08.7]}
31. Nd5 {[%clk 0:02:19.8]} 31... Kf7 {[%clk 0:00:07.1]} 32. Nc7 {[%clk
0:02:19.5]} 32... Qa7 {[%clk 0:00:07.6]} 33. Qxb3+ {[%clk 0:02:19]} 33... Kg7
{[%clk 0:00:06]} 34. Nxa8 {[%clk 0:02:18.1]} 34... Qxa8 {[%clk 0:00:06.5]} 35.
Rc8 {[%clk 0:02:17.6]} 35... Qxc8 {[%clk 0:00:05.8]} 36. a4 {[%clk 0:02:13.8]}
36... Qc5 {[%clk 0:00:04.4]} 37. Qb7 {[%clk 0:02:10.4]} 37... Kf7 {[%clk
0:00:04]} 38. b4 {[%clk 0:02:08.6]} 38... Qc3 {[%clk 0:00:03.4]} 39. Qd5+ {[%clk
0:02:05.8]} 39... Kg7 {[%clk 0:00:03.1]} 40. Qb5 {[%clk 0:01:53.7]} 40... Nf4
{[%clk 0:00:02.7]} 41. Qe8 {[%clk 0:01:46.9]} 41... Qxb4+ {[%clk 0:00:02.1]} 42.
Kc2 {[%clk 0:01:46.3]} 42... Qc5+ {[%clk 0:00:01.7]} 43. Kb3 {[%clk 0:01:45.4]}
43... Qb6+ {[%clk 0:00:01.5]} 44. Ka2 {[%clk 0:01:44.2]} 1-0

[Event "Early-Titled-Tuesday-Blitz-March-26-2024"]
[Site "Chess.com"]
[Date "2024.03.26"]
[Round "11"]
[White "SlavenPastar"]
[Black "Chessdude1987"]
[Result "0-1"]
[WhiteElo "2557"]
[BlackElo "2412"]
[TimeControl "180+1"]
[EndTime "10:03:36 PDT"]
[Termination "Chessdude1987 won by resignation"]

1. b3 {[%clk 0:03:00.9]} 1... f5 {[%clk 0:02:57]} 2. Bb2 {[%clk 0:03:01.2]} 2...
d6 {[%clk 0:02:56.4]} 3. d3 {[%clk 0:03:01.7]} 3... e5 {[%clk 0:02:56.4]} 4. Nd2
{[%clk 0:03:02.5]} 4... Nf6 {[%clk 0:02:56.3]} 5. g3 {[%clk 0:03:03.2]} 5... c5
{[%clk 0:02:55.3]} 6. Bg2 {[%clk 0:03:03.9]} 6... Be7 {[%clk 0:02:54.5]} 7. e4
{[%clk 0:03:04.6]} 7... f4 {[%clk 0:02:50.2]} 8. f3 {[%clk 0:03:04.3]} 8... O-O
{[%clk 0:02:45]} 9. g4 {[%clk 0:03:04.8]} 9... h5 {[%clk 0:02:41.7]} 10. g5
{[%clk 0:03:03.3]} 10... Nh7 {[%clk 0:02:40.9]} 11. h4 {[%clk 0:03:03.8]} 11...
Nc6 {[%clk 0:02:35.8]} 12. Qe2 {[%clk 0:03:03.6]} 12... Nd4 {[%clk 0:02:31.7]}
13. Qd1 {[%clk 0:03:03.9]} 13... b5 {[%clk 0:02:29.5]} 14. a4 {[%clk 0:03:03.1]}
14... b4 {[%clk 0:02:23.8]} 15. Ne2 {[%clk 0:03:03.4]} 15... Be6 {[%clk
0:02:19.6]} 16. Nxd4 {[%clk 0:03:03.5]} 16... cxd4 {[%clk 0:02:19.5]} 17. Nc4
{[%clk 0:03:00.6]} 17... a5 {[%clk 0:02:08.6]} 18. Qe2 {[%clk 0:03:00.3]} 18...
Ra6 {[%clk 0:02:03.8]} 19. Kf2 {[%clk 0:02:59.7]} 19... Qd7 {[%clk 0:02:01.8]}
20. Kg1 {[%clk 0:02:59.6]} 20... Re8 {[%clk 0:01:54.9]} 21. Kh2 {[%clk
0:02:59.9]} 21... Nf8 {[%clk 0:01:54.4]} 22. Qf2 {[%clk 0:02:59]} 22... Ng6
{[%clk 0:01:53.8]} 23. Bc1 {[%clk 0:02:55.3]} 23... Rf8 {[%clk 0:01:49.5]} 24.
Bd2 {[%clk 0:02:55]} 24... d5 {[%clk 0:01:38.3]} 25. exd5 {[%clk 0:02:54.3]}
25... Bxd5 {[%clk 0:01:38.4]} 26. Rae1 {[%clk 0:02:53.9]} 26... Bxc4 {[%clk
0:01:22.7]} 27. dxc4 {[%clk 0:02:53.8]} 27... Bd6 {[%clk 0:01:21.6]} 28. Bh3
{[%clk 0:02:53.5]} 28... Qf7 {[%clk 0:01:19.1]} 29. Re2 {[%clk 0:02:53]} 29...
Ne7 {[%clk 0:01:18.7]} 30. c5 {[%clk 0:02:48]} 30... Bc7 {[%clk 0:01:13.5]} 31.
Bd7 {[%clk 0:02:44.3]} 31... Nf5 {[%clk 0:00:57]} 32. Bb5 {[%clk 0:02:37.9]}
32... Re6 {[%clk 0:00:56.6]} 33. Rg1 {[%clk 0:02:30.8]} 33... Ne3 {[%clk
0:00:54.9]} 34. Bxe3 {[%clk 0:02:28.8]} 34... fxe3 {[%clk 0:00:54.8]} 35. Qg2
{[%clk 0:02:13.6]} 35... e4+ {[%clk 0:00:54.7]} 36. f4 {[%clk 0:02:14]} 36...
Qxf4+ {[%clk 0:00:48.5]} 37. Kh3 {[%clk 0:02:13.4]} 37... Qf3+ {[%clk
0:00:37.9]} 38. Qxf3 {[%clk 0:02:11.2]} 38... Rxf3+ {[%clk 0:00:26.5]} 39. Kg2
{[%clk 0:02:10.6]} 39... Re5 {[%clk 0:00:20.6]} 40. Bc4+ {[%clk 0:02:09.8]}
40... Kf8 {[%clk 0:00:20]} 41. c6 {[%clk 0:02:06]} 41... Ke7 {[%clk 0:00:19.6]}
42. Ree1 {[%clk 0:02:05.2]} 42... Rf2+ {[%clk 0:00:19]} 43. Kh1 {[%clk
0:02:00.3]} 43... Ref5 {[%clk 0:00:18.4]} 44. Rg2 {[%clk 0:02:00.6]} 44... Rxg2
{[%clk 0:00:17.5]} 45. Kxg2 {[%clk 0:02:00.6]} 45... Rf2+ {[%clk 0:00:17.7]} 46.
Kg1 {[%clk 0:02:00.9]} 46... Rxc2 {[%clk 0:00:17.4]} 47. Rf1 {[%clk 0:02:01.5]}
47... e2 {[%clk 0:00:16.5]} 48. Rf7+ {[%clk 0:01:59.8]} 48... Kd6 {[%clk
0:00:16.7]} 49. Kf2 {[%clk 0:01:58.9]} 49... d3 {[%clk 0:00:16.2]} 50. Rxg7
{[%clk 0:01:56.4]} 50... Bb6+ {[%clk 0:00:13.5]} 51. Kg2 {[%clk 0:01:54.1]}
51... e1=Q+ {[%clk 0:00:13.7]} 0-1

[Event "Early-Titled-Tuesday-Blitz-March-26-2024"]
[Site "Chess.com"]
[Date "2024.03.26"]
[Round "11"]
[White "Knightmare1014"]
[Black "Masterbeaterr"]
[Result "1-0"]
[WhiteElo "2350"]
[BlackElo "2438"]
[TimeControl "180+1"]
[EndTime "10:03:45 PDT"]
[Termination "Knightmare1014 won by resignation"]

1. e4 {[%clk 0:03:00.9]} 1... e5 {[%clk 0:02:59.1]} 2. Nf3 {[%clk 0:03:01]} 2...
Nc6 {[%clk 0:02:59.2]} 3. Bb5 {[%clk 0:03:01.4]} 3... a6 {[%clk 0:02:59.7]} 4.
Ba4 {[%clk 0:03:01.7]} 4... Nf6 {[%clk 0:03:00.1]} 5. O-O {[%clk 0:03:01]} 5...
Nxe4 {[%clk 0:03:00.4]} 6. d4 {[%clk 0:03:00.7]} 6... b5 {[%clk 0:02:59.9]} 7.
Bb3 {[%clk 0:03:00.1]} 7... d5 {[%clk 0:03:00.8]} 8. dxe5 {[%clk 0:03:00.4]}
8... Be6 {[%clk 0:02:59.6]} 9. Re1 {[%clk 0:02:52.4]} 9... Nc5 {[%clk
0:02:59.3]} 10. Be3 {[%clk 0:02:45.1]} 10... Nxb3 {[%clk 0:02:57]} 11. axb3
{[%clk 0:02:45.1]} 11... a5 {[%clk 0:02:57.6]} 12. Qe2 {[%clk 0:02:43.6]} 12...
Rb8 {[%clk 0:02:55.4]} 13. Rd1 {[%clk 0:02:41.1]} 13... Qc8 {[%clk 0:02:51.8]}
14. Nc3 {[%clk 0:02:36]} 14... Be7 {[%clk 0:02:30.8]} 15. Nxd5 {[%clk
0:02:30.7]} 15... O-O {[%clk 0:02:28.2]} 16. Nxe7+ {[%clk 0:02:25.2]} 16... Nxe7
{[%clk 0:02:29.1]} 17. Rxa5 {[%clk 0:02:24.8]} 17... c6 {[%clk 0:02:29.7]} 18.
Ra7 {[%clk 0:02:23.5]} 18... Nd5 {[%clk 0:02:29.6]} 19. Bc5 {[%clk 0:02:19.4]}
19... Re8 {[%clk 0:02:28.1]} 20. Bd6 {[%clk 0:02:18.9]} 20... Ra8 {[%clk
0:02:27.9]} 21. Rxa8 {[%clk 0:02:18]} 21... Qxa8 {[%clk 0:02:27.3]} 22. c4
{[%clk 0:02:17.5]} 22... bxc4 {[%clk 0:02:18.5]} 23. bxc4 {[%clk 0:02:17.6]}
23... Nf4 {[%clk 0:02:19.1]} 24. Qe4 {[%clk 0:02:16.5]} 24... Ng6 {[%clk
0:02:19.2]} 25. h3 {[%clk 0:02:13.4]} 25... Qa4 {[%clk 0:02:15.6]} 26. Rc1
{[%clk 0:02:03.9]} 26... Rc8 {[%clk 0:02:13.6]} 27. Qc2 {[%clk 0:01:47.3]} 27...
Qa8 {[%clk 0:02:05.7]} 28. b4 {[%clk 0:01:43.8]} 28... Nf4 {[%clk 0:02:01.4]}
29. Qe4 {[%clk 0:01:41.4]} 29... Ng6 {[%clk 0:01:56.9]} 30. b5 {[%clk
0:01:38.4]} 30... Qa4 {[%clk 0:01:48.3]} 31. bxc6 {[%clk 0:01:35.7]} 31... Rxc6
{[%clk 0:01:47.4]} 32. Nd2 {[%clk 0:01:22.2]} 32... h5 {[%clk 0:01:35]} 33. c5
{[%clk 0:01:16.7]} 33... Qa6 {[%clk 0:01:24.2]} 34. Nf3 {[%clk 0:01:11.8]} 34...
Qc8 {[%clk 0:01:16.5]} 35. Nd4 {[%clk 0:01:10.2]} 35... Ra6 {[%clk 0:01:12.9]}
36. c6 {[%clk 0:01:06.8]} 36... Nf8 {[%clk 0:01:08.3]} 37. c7 {[%clk 0:01:03.1]}
37... Bd7 {[%clk 0:01:06.8]} 38. Rb1 {[%clk 0:01:00.5]} 38... Bxh3 {[%clk
0:00:46.1]} 39. Rb8 {[%clk 0:00:54.2]} 1-0

[Event "Early-Titled-Tuesday-Blitz-March-26-2024"]
[Site "Chess.com"]
[Date "2024.03.26"]
[Round "11"]
[White "Dewarfd"]
[Black "Bada_norovsambuu"]
[Result "0-1"]
[WhiteElo "2145"]
[BlackElo "2234"]
[TimeControl "180+1"]
[EndTime "10:03:45 PDT"]
[Termination "Bada_norovsambuu won on time"]

1. c4 {[%clk 0:03:00.9]} 1... Nf6 {[%clk 0:02:56.2]} 2. Nc3 {[%clk 0:02:58.8]}
2... e6 {[%clk 0:02:55.3]} 3. e4 {[%clk 0:02:58.5]} 3... d6 {[%clk 0:02:45.6]}
4. g3 {[%clk 0:02:51.2]} 4... g6 {[%clk 0:02:45.3]} 5. Bg2 {[%clk 0:02:50.3]}
5... Bg7 {[%clk 0:02:45.1]} 6. Nge2 {[%clk 0:02:50.9]} 6... O-O {[%clk
0:02:44.7]} 7. O-O {[%clk 0:02:50]} 7... c5 {[%clk 0:02:43.5]} 8. d4 {[%clk
0:02:47.7]} 8... cxd4 {[%clk 0:02:41.7]} 9. Nxd4 {[%clk 0:02:48.6]} 9... Nc6
{[%clk 0:02:41.2]} 10. Ndb5 {[%clk 0:02:40.1]} 10... Ne8 {[%clk 0:02:21.8]} 11.
Bf4 {[%clk 0:02:37.7]} 11... Ne5 {[%clk 0:02:11]} 12. Qe2 {[%clk 0:01:23.7]}
12... a6 {[%clk 0:02:09.3]} 13. Na3 {[%clk 0:01:20.1]} 13... Qc7 {[%clk
0:02:05.2]} 14. Rfd1 {[%clk 0:01:15.2]} 14... Bd7 {[%clk 0:01:53.1]} 15. Rac1
{[%clk 0:01:03.2]} 15... Bc6 {[%clk 0:01:48.8]} 16. Nd5 {[%clk 0:00:57.8]} 16...
exd5 {[%clk 0:01:45.2]} 17. cxd5 {[%clk 0:00:58.7]} 17... Qa5 {[%clk 0:01:27.8]}
18. dxc6 {[%clk 0:00:56.4]} 18... Nxc6 {[%clk 0:01:26.1]} 19. Nc4 {[%clk
0:00:42.2]} 19... Qxa2 {[%clk 0:01:24.2]} 20. Nxd6 {[%clk 0:00:37.6]} 20... Nxd6
{[%clk 0:01:23]} 21. Bxd6 {[%clk 0:00:23.5]} 21... Rfd8 {[%clk 0:01:20.7]} 22.
e5 {[%clk 0:00:16.3]} 22... Rac8 {[%clk 0:01:06.8]} 23. Bd5 {[%clk 0:00:16.1]}
23... Qa5 {[%clk 0:01:02.1]} 24. Ra1 {[%clk 0:00:09.3]} 24... Qb6 {[%clk
0:00:58.2]} 25. Qf3 {[%clk 0:00:08.5]} 25... Rd7 {[%clk 0:00:54.4]} 26. Ba3
{[%clk 0:00:02.8]} 26... Nd8 {[%clk 0:00:52.9]} 0-1

[Event "Early-Titled-Tuesday-Blitz-March-26-2024"]
[Site "Chess.com"]
[Date "2024.03.26"]
[Round "11"]
[White "Anton_Demchenko"]
[Black "Matrix3x3a"]
[Result "1-0"]
[WhiteElo "2977"]
[BlackElo "2632"]
[TimeControl "180+1"]
[EndTime "10:03:52 PDT"]
[Termination "Anton_Demchenko won by resignation"]

1. e4 {[%clk 0:02:57.3]} 1... c5 {[%clk 0:02:59.6]} 2. Nf3 {[%clk 0:02:57.5]}
2... d6 {[%clk 0:02:59.6]} 3. d4 {[%clk 0:02:57.9]} 3... cxd4 {[%clk 0:03:00.5]}
4. Qxd4 {[%clk 0:02:58.3]} 4... Nc6 {[%clk 0:02:59.9]} 5. Bb5 {[%clk 0:02:57.8]}
5... Bd7 {[%clk 0:03:00.2]} 6. Qd3 {[%clk 0:02:58]} 6... Nf6 {[%clk 0:02:59.1]}
7. Bg5 {[%clk 0:02:58.2]} 7... a6 {[%clk 0:02:54.1]} 8. Bxc6 {[%clk 0:02:57.7]}
8... Bxc6 {[%clk 0:02:55]} 9. Nc3 {[%clk 0:02:58.2]} 9... Nd7 {[%clk 0:02:54.7]}
10. O-O-O {[%clk 0:02:57.8]} 10... Rc8 {[%clk 0:02:50.9]} 11. Kb1 {[%clk
0:02:57.1]} 11... f6 {[%clk 0:02:49.4]} 12. Bh4 {[%clk 0:02:47.9]} 12... Ne5
{[%clk 0:02:46.2]} 13. Nxe5 {[%clk 0:02:47.4]} 13... dxe5 {[%clk 0:02:47.1]} 14.
Qh3 {[%clk 0:02:38]} 14... Qc7 {[%clk 0:02:44.4]} 15. Rd2 {[%clk 0:02:37.4]}
15... Bd7 {[%clk 0:02:39.4]} 16. Qf3 {[%clk 0:02:34.7]} 16... Be6 {[%clk
0:02:39]} 17. Nd5 {[%clk 0:02:33.4]} 17... Bxd5 {[%clk 0:02:38.4]} 18. exd5
{[%clk 0:02:34.1]} 18... Qd6 {[%clk 0:02:38.4]} 19. Qg4 {[%clk 0:02:24.5]} 19...
Rc7 {[%clk 0:02:37.7]} 20. f3 {[%clk 0:02:18.7]} 20... g6 {[%clk 0:02:37.3]} 21.
Rhd1 {[%clk 0:02:10.3]} 21... Kf7 {[%clk 0:02:33.6]} 22. Be1 {[%clk 0:01:51.6]}
22... Bg7 {[%clk 0:02:29]} 23. Re2 {[%clk 0:01:50]} 23... Rhc8 {[%clk
0:02:22.4]} 24. Bb4 {[%clk 0:01:38.8]} 24... Qd7 {[%clk 0:02:20.2]} 25. Qxd7
{[%clk 0:00:51.3]} 25... Rxd7 {[%clk 0:02:21.1]} 26. b3 {[%clk 0:00:51.9]} 26...
e6 {[%clk 0:01:56.3]} 27. dxe6+ {[%clk 0:00:50.1]} 27... Kxe6 {[%clk 0:01:56.5]}
28. Rxd7 {[%clk 0:00:50]} 28... Kxd7 {[%clk 0:01:56.8]} 29. Rd2+ {[%clk
0:00:50.7]} 29... Ke8 {[%clk 0:01:56.7]} 30. c4 {[%clk 0:00:48.8]} 30... Rd8
{[%clk 0:01:54.2]} 31. Re2 {[%clk 0:00:43.1]} 31... Kf7 {[%clk 0:01:47.5]} 32.
Kc2 {[%clk 0:00:42.9]} 32... Rd7 {[%clk 0:01:45.8]} 33. Bc3 {[%clk 0:00:41.9]}
33... Ke6 {[%clk 0:01:45.4]} 34. f4 {[%clk 0:00:40.2]} 34... Kf5 {[%clk
0:01:41.8]} 35. fxe5 {[%clk 0:00:39.8]} 35... fxe5 {[%clk 0:01:42]} 36. h3
{[%clk 0:00:40.6]} 36... Ke6 {[%clk 0:01:41.9]} 37. a4 {[%clk 0:00:38.8]} 37...
Bf6 {[%clk 0:01:41.3]} 38. b4 {[%clk 0:00:39]} 38... Rc7 {[%clk 0:01:33.4]} 39.
Kb3 {[%clk 0:00:39.1]} 39... Rd7 {[%clk 0:01:31.9]} 40. c5 {[%clk 0:00:36.9]}
40... Rd3 {[%clk 0:01:29]} 41. Kc4 {[%clk 0:00:37.1]} 41... Rg3 {[%clk
0:01:25.7]} 42. b5 {[%clk 0:00:37.3]} 42... axb5+ {[%clk 0:01:24.9]} 43. axb5
{[%clk 0:00:38.2]} 43... g5 {[%clk 0:01:18.5]} 44. b6 {[%clk 0:00:37]} 44... h5
{[%clk 0:01:02.3]} 45. c6 {[%clk 0:00:32.9]} 45... bxc6 {[%clk 0:01:01.2]} 46.
b7 {[%clk 0:00:33.5]} 1-0

[Event "Early-Titled-Tuesday-Blitz-March-26-2024"]
[Site "Chess.com"]
[Date "2024.03.26"]
[Round "11"]
[White "daika91"]
[Black "Coach_Istvanovszki"]
[Result "1-0"]
[WhiteElo "2702"]
[BlackElo "2561"]
[TimeControl "180+1"]
[EndTime "10:03:52 PDT"]
[Termination "daika91 won by resignation"]

1. d4 {[%clk 0:03:00.9]} 1... g6 {[%clk 0:02:59]} 2. e4 {[%clk 0:03:00.1]} 2...
Bg7 {[%clk 0:02:54.1]} 3. Nc3 {[%clk 0:02:57.7]} 3... c5 {[%clk 0:02:52.7]} 4.
dxc5 {[%clk 0:02:52.1]} 4... Bxc3+ {[%clk 0:02:52.2]} 5. bxc3 {[%clk 0:02:51.7]}
5... Nf6 {[%clk 0:02:53.1]} 6. Bd3 {[%clk 0:02:50.1]} 6... Qa5 {[%clk
0:02:52.4]} 7. Ne2 {[%clk 0:02:44.8]} 7... Qxc5 {[%clk 0:02:51.1]} 8. Be3 {[%clk
0:02:42.7]} 8... Qa5 {[%clk 0:02:50.6]} 9. O-O {[%clk 0:02:38.3]} 9... Nc6
{[%clk 0:02:50.6]} 10. h3 {[%clk 0:02:32.8]} 10... d6 {[%clk 0:02:50.8]} 11. f4
{[%clk 0:02:32]} 11... b6 {[%clk 0:02:38]} 12. Nd4 {[%clk 0:02:29.1]} 12... Bb7
{[%clk 0:02:30.9]} 13. Bb5 {[%clk 0:01:51.1]} 13... Qxc3 {[%clk 0:02:06.7]} 14.
Rf3 {[%clk 0:01:23.3]} 14... O-O {[%clk 0:01:33.9]} 15. Nxc6 {[%clk 0:01:19.9]}
15... Bxc6 {[%clk 0:01:33.6]} 16. Bd4 {[%clk 0:01:19.8]} 16... Qa5 {[%clk
0:01:18.3]} 17. Bxc6 {[%clk 0:01:18.4]} 17... Rac8 {[%clk 0:01:19.1]} 18. Bxf6
{[%clk 0:01:17.1]} 18... Rxc6 {[%clk 0:01:16.3]} 19. Bxe7 {[%clk 0:01:15.4]}
19... Re8 {[%clk 0:01:16.9]} 20. Bf6 {[%clk 0:01:13.5]} 20... Rxe4 {[%clk
0:01:15.8]} 21. c3 {[%clk 0:01:02.3]} 21... d5 {[%clk 0:01:08.4]} 22. Bd4 {[%clk
0:01:01.4]} 22... Rce6 {[%clk 0:01:06.2]} 23. Qd2 {[%clk 0:01:00.4]} 23... Re2
{[%clk 0:01:05.5]} 24. Qd3 {[%clk 0:00:58.4]} 24... Qa3 {[%clk 0:01:01.4]} 25.
f5 {[%clk 0:00:42.9]} 25... R6e4 {[%clk 0:00:50]} 26. fxg6 {[%clk 0:00:38]}
26... hxg6 {[%clk 0:00:50.9]} 27. Rf2 {[%clk 0:00:31]} 27... Qb2 {[%clk
0:00:47.8]} 28. Raf1 {[%clk 0:00:29.6]} 28... Qxa2 {[%clk 0:00:47.9]} 29. Qg3
{[%clk 0:00:27.1]} 29... Rxf2 {[%clk 0:00:31.6]} 30. Qb8+ {[%clk 0:00:23.3]} 1-0